Cogmind - Beta 17.1 @@@ ROGUE MODE // 2026.09.03 @ 23:29:27 Player: Finn Result: Destroyed by Y-64 Sentinel with Wave Gun Performance ------------- Evolutions (5) 2500 Regions Visited (10) 2000 Robots Destroyed (47) 235 Value Destroyed (1388) 1388 Prototype IDs (2) 40 Alien Tech Used (0) 0 Bonus (48) 48 TOTAL SCORE: 6211 Bonus ------- Follower Combat Kills 48 Cogmind --------- Core Integrity 0/1000 Matter 300/300 Energy 100/100 System Corruption 0% Temperature Cool (9) Movement Core (50) Location -5/Extension Parts ------- > --- POWER (3) -------- (None) > --- PROPULSION (3) --- (None) > --- UTILITY (7) ------ (None) > --- WEAPON (4) ------- (None) > --- INVENTORY (5) ---- (None) Peak State ------------ > --- POWER ------------ Ion Engine Light Deuterium Engine Micro Nuclear Core > --- PROPULSION ------- Linear Gravjet Linear Gravjet Linear Gravjet > --- UTILITY ---------- Small Storage Unit IFF Parser Transmission Jammer Hacking Suite System Restoration Module > --- WEAPON ----------- High-powered Shock Rifle Beam Rifle Particle Gun Improved Spread Laser > --- INVENTORY -------- Improved Heat Sink Terrain Scanner Improved Terrain Scanner Advanced ECM Suite Recalibrator Heavy Ion Cannon Rocket Launcher [Rating: 59] Favorites ----------- Power Micro Nuclear Core Engine Ion Engine Power Core Micro Nuclear Core Propulsion Wheel Treads Improved Treads Leg VSS Leg Wheel Wheel Hover Unit Linear Gravjet Utility Small Storage Unit Device Recalibrator Storage Small Storage Unit Processor 0b10 Decoder Chip [Generic] Hackware Hacking Suite Protection Heavy Reflective Plating Weapon Particle Gun Energy Gun Particle Gun Energy Cannon EM Pulse Cannon Ballistic Gun Assault Rifle Launcher Rocket Launcher Special Weapon Plasma Flamer Build | -11 -10 -10 -10 -8 -7 -6 -6 -6 -5 -5 ------- Run | Yrd Mat Min Sub Mat Fac Fac Low Low Fac Ext Slots Evolved 10 | . . . . 4 2 2 . . 2 . Power 2 | . . . . . 1 1 . . . . Propulsion 1 | . . . . 1 . . . . . . Utility 5 | . . . . 3 . . . . 2 . Weapon 2 | . . . . . 1 1 . . . . Parts Attached 79 | 8 4 7 1 9 23 6 5 8 4 4 Power 11 | 2 1 . . 1 2 2 . 1 1 1 Engine 7 | 2 1 . . 1 1 1 . 1 . . Core 4 | . . . . . 1 1 . . 1 1 Reactor . | . . . . . . . . . . . Propulsion 18 | 2 . 3 . 3 7 . . . . 3 Treads 1 | . . . . . . . . . . 1 Leg 6 | . . . . . 4 . . . . 2 Wheel 8 | 2 . 3 . 3 . . . . . . Hover 3 | . . . . . 3 . . . . . Flight . | . . . . . . . . . . . Utility 27 | 2 1 2 . 4 8 2 4 4 . . Device 17 | 1 . 2 . 3 5 1 3 2 . . Storage 1 | 1 . . . . . . . . . . Processor 5 | . 1 . . 1 1 . 1 1 . . Hackware 1 | . . . . . 1 . . . . . Protection 3 | . . . . . 1 1 . 1 . . Artifact . | . . . . . . . . . . . Weapon 23 | 2 2 2 1 1 6 2 1 3 3 . Energy Gun 10 | . . . . . 5 2 1 1 1 . Energy Cannon 3 | . . . . . 1 . . 1 1 . Ballistic Gun 7 | 2 2 1 1 . . . . 1 . . Ballistic Cannon . | . . . . . . . . . . . Launcher 2 | . . . . 1 . . . . 1 . Special Weapon 1 | . . 1 . . . . . . . . Impact Weapon . | . . . . . . . . . . . Slashing Weapon . | . . . . . . . . . . . Piercing Weapon . | . . . . . . . . . . . Special Melee Weapon . | . . . . . . . . . . . Unidentified Prototypes 2 | . . . . 1 1 . . . . . Parts Lost 62 | . 1 5 3 6 9 6 13 9 5 5 Power 11 | . 1 . 1 . 2 2 1 2 1 1 Propulsion 14 | . . 3 1 2 2 2 1 . . 3 Utility 19 | . . 1 . 2 2 2 6 4 1 1 Weapon 18 | . . 1 1 2 3 . 5 3 3 . Highest Loss Streak 9 | . 1 2 3 2 7 4 9 5 5 5 To Critical Strikes . | . . . . . . . . . . . Average Backups 6 | 1 7 7 8 6 7 7 5 2 . . Power . | . 1 1 1 1 . . 1 . . . Propulsion . | . 1 . . . . . . . . . Utility 3 | . 2 4 5 2 4 5 3 . . . Weapon 1 | . 2 2 2 1 1 2 1 1 . . Tool/Special . | . . . . . . . . . . . Unused Backups 2 | . 1 1 . . . . . . . . Power . | . . . . . . . . . . . Propulsion 1 | . 1 . . . . . . . . . Utility . | . . . . . . . . . . . Weapon 1 | . . 1 . . . . . . . . Tool/Special . | . . . . . . . . . . . Average Slot Usage (%) 74 | . 99 86 91 77 87 79 65 46 20 5 Engine 5 | . 13 14 11 8 10 3 . 4 . . Core 6 | . . . . . 2 7 12 4 1 . Leg 1 | . . . . . 9 . . . . 1 Wheel 6 | . 28 16 25 13 1 . . . . . Hover 2 | . . . . . 7 12 1 . . . Device 12 | . 12 12 14 25 11 12 9 12 5 2 Storage 6 | . 14 14 14 9 7 6 1 . . . Processor 4 | . 1 . . 8 10 . 3 5 3 . Hackware 1 | . . . . . 4 6 2 . . . Protection 3 | . . . . . 2 2 5 3 . . Energy Gun 13 | . . . . . 15 25 24 4 2 . Ballistic Gun 5 | . 28 20 14 7 . . . 3 . . Special Weapon 1 | . . 7 11 . . . . . . . Peak Build Rating 59 | 9 10 12 13 23 48 59 52 37 27 12 Average Rating 32 | 6 9 9 11 17 33 50 48 27 15 5 On Entrance 15 | . 9 10 12 6 15 48 51 5 8 6 Avg Prop Armor Cover (%) 6 | . . . . . 6 . . . . . Naked Turns 35 | . . . . . . . . . . 35 Heaviest Build 54 | 14 15 16 18 23 42 53 54 52 31 16 Greatest Support 42 | 20 20 20 20 42 36 27 9 3 3 40 Greatest Overweight (x) 17 | 4 1 1 . 6 8 5 17 17 10 5 Average Overweight (x) 2 | 1 . . . . 1 2 10 6 1 . Largest Inventory Capacity 8 | 8 8 8 8 8 8 8 8 5 5 5 Average Capacity 6 | 7 8 8 8 8 8 8 5 5 5 5 Most Carried 8 | 5 8 8 8 8 8 8 8 5 3 3 Average Carried 6 | 1 7 7 8 6 7 7 5 2 . . Final Capacity 8 | 8 8 8 8 8 8 8 5 5 5 5 Final Carried 8 | 5 7 8 8 8 8 8 5 1 . . Class Distribution -------------------- 45% | Mutant 30% | Tank 7% | Scavenger-Mutant 7% | Skirmisher 5% | Gunner Dominant Class ---------------- Mutant | -10/Materials Mutant | -10/Mines Mutant | -10/Subcaves Scavenger-Mutant | -8/Materials Mutant | -7/Factory Tank | -6/Factory Tank | -6/Lower Caves Derelict-Tank | -6/Lower Caves Mutant | -5/Factory Mutant | -5/Extension Resources | -11 -10 -10 -10 -8 -7 -6 -6 -6 -5 -5 ----------- Run | Yrd Mat Min Sub Mat Fac Fac Low Low Fac Ext Matter Collected 1867 | 175 361 298 128 32 249 63 241 227 . 93 Remotely . | . . . . . . . . . . . Salvage Created 1443 | 170 316 201 47 81 296 58 142 76 56 . Parts 101 | 15 22 18 2 8 17 3 5 8 3 . Haulers Intercepted 1 | . 1 . . . . . . . . . Recyclers Shooed 2 | . 1 . . 1 . . . . . . Parts Field Recycled . | . . . . . . . . . . . Retrieved Matter . | . . . . . . . . . . . Parts Self-Destructed 15 | . . . 2 . . . 5 8 . . Prevented . | . . . . . . . . . . . Parts Restored 1 | . . . . . . . 1 . . . Broken 1 | . . . . . . . 1 . . . Kills | -11 -10 -10 -10 -8 -7 -6 -6 -6 -5 -5 ------- Run | Yrd Mat Min Sub Mat Fac Fac Low Low Fac Ext Combat Hostiles Destroyed 34 | . 5 9 2 4 6 1 3 3 1 . Guns 26 | . 5 8 1 4 5 1 2 . . . Cannons 4 | . . . 1 . . . . 3 . . AOE 2 | . . . . . 1 . . . 1 . Classes Destroyed 14 | 3 6 2 2 . 1 . . . . . Worker 2 | 1 1 . . . . . . . . . Builder 2 | . 1 . . 1 . . . . . . Tunneler 5 | 3 . 1 . . 1 . . . . . Hauler 1 | . 1 . . . . . . . . . Recycler 1 | 1 . . . . . . . . . . Mechanic 1 | . 1 . . . . . . . . . Watcher 2 | . 2 . . . . . . . . . Swarmer 12 | . 3 3 . 3 . . . 3 . . Grunt 14 | . 2 4 . 1 4 . 2 . 1 . Sentry 2 | . . . 1 . . 1 . . . . Demolisher 1 | . . 1 . . . . . . . . Programmer 3 | . . . . . 2 . 1 . . . Subdweller 1 | . . . 1 . . . . . . . Assembled 1 | . . 1 . . . . . . . . Best Kill Streak 5 | 2 3 4 1 3 5 1 2 2 1 . Combat Bots Only 4 | . 3 4 1 3 4 1 2 2 1 . Max Kills in Single Turn 2 | 1 2 1 1 1 2 1 1 1 1 . Gunslinging . | . . . . . . . . . . . Exploded 1 | . . . . . 1 . . . 1 . Melee . | . . . . . . . . . . . Uniques/NPCs Destroyed . | . . . . . . . . . . . Combat | -11 -10 -10 -10 -8 -7 -6 -6 -6 -5 -5 -------- Run | Yrd Mat Min Sub Mat Fac Fac Low Low Fac Ext Hostile Shots Fired 511 | . 32 42 12 39 56 26 106 76 59 63 Missed 141 | . 12 9 2 11 16 5 29 20 21 16 Hits 370 | . 20 33 10 28 40 21 77 56 38 47 Projectile 370 | . 20 33 10 28 40 21 77 56 38 47 AOE 3 | . . 3 . . . . . . . . Critical Strikes 14 | . . . 2 . 5 . 2 . 1 4 Part Disruptions 1 | . . . . . 1 . . . . . Damage Taken 6999 | . 197 475 234 450 1098 615 1241 854 796 1039 Core 2292 | . 39 62 132 92 223 220 315 195 345 669 Absorbed by Shields . | . . . . . . . . . . . Ignored by Resistances 233 | . . . . . . . 143 . 55 35 Core Remaining (%) 54 | 100 . . 6 83 68 . . 14 . . Volleys Fired 194 | 9 36 46 12 19 28 5 19 15 5 . Largest 4 | 2 2 2 2 2 3 4 3 3 3 . Hottest 256 | 40 40 120 130 63 196 256 220 164 202 . Shots Fired 358 | 18 72 88 22 23 48 16 32 27 12 . Gun 291 | 18 72 62 12 18 41 16 32 15 5 . Cannon 23 | . . . . . 7 . . 12 4 . Launcher 8 | . . . . 5 . . . . 3 . Special 36 | . . 26 10 . . . . . . . Kinetic 188 | 18 72 62 12 18 . . . 6 . . Thermal 140 | . . 26 10 . 33 13 32 21 5 . Explosive 8 | . . . . 5 . . . . 3 . Electromagnetic 22 | . . . . . 15 3 . . 4 . Robot Hit Streak 18 | 4 10 6 18 9 7 7 7 1 2 . Robot Miss Streak 6 | 4 6 4 . 3 3 4 4 6 2 . Penetration Max . | . . . . . . . . . . . Secondary Targets 1 | . . 1 . . . . . . . . Max Gunslinging Chain 1 | . . 1 . . . . . . . . Shots Hit Robots 187 | 7 39 39 14 15 29 11 22 5 6 . Core Hits 93 | 6 15 16 4 10 18 8 8 3 4 1 Critical Kills 1 | . 1 . . . . . . . . . Critical Parts Destroyed . | . . . . . . . . . . . Critical Strikes 12 | . 1 2 2 . 5 . 1 . 1 . Burn 8 | . . 2 2 . 3 . 1 . . . Destroy 1 | . 1 . . . . . . . . . Corrupt 3 | . . . . . 2 . . . 1 . Melee Attacks . | . . . . . . . . . . . Impact . | . . . . . . . . . . . Slashing . | . . . . . . . . . . . Piercing . | . . . . . . . . . . . Sneak Attacks . | . . . . . . . . . . . Combat Hostiles . | . . . . . . . . . . . Follow-up Attacks . | . . . . . . . . . . . Damage Inflicted 3648 | 96 491 488 234 384 615 226 430 162 504 18 Guns 2495 | 96 491 407 155 165 393 226 430 78 54 . Cannons 216 | . . . . . 35 . . 84 97 . Explosions 745 | . . . . 206 186 . . . 353 . Melee . | . . . . . . . . . . . Ramming 37 | . . 5 . 13 1 . . . . 18 Kinetic 1335 | 96 491 407 155 165 . . . 21 . . Thermal 1295 | . . 76 79 . 329 186 430 141 54 . Explosive 745 | . . . . 206 186 . . . 353 . Electromagnetic 236 | . . . . . 99 40 . . 97 . Impact . | . . . . . . . . . . . Slashing . | . . . . . . . . . . . Piercing . | . . . . . . . . . . . Highest Corruption 5 | . . . . 5 4 . 1 1 . . Average Corruption 1 | . . . . 5 3 . 1 1 . . Corruption Purged 4 | . . . . . 4 . . . . . Corruption Blocked . | . . . . . . . . . . . Effects 39 | . . . . 1 11 . 24 3 . . Message Errors 11 | . . . . . 2 . 8 1 . . Matter Fused 9 | . . . . . 3 . 4 2 . . Heat Flow Errors 4 | . . . . . 1 . 3 . . . Energy Discharges 4 | . . . . . 1 . 3 . . . Data Loss (minor) 4 | . . . . 1 . . 3 . . . Data Loss (major) 3 | . . . . . 1 . 2 . . . Misfires 1 | . . . . . 1 . . . . . Alerts 2 | . . . . . 1 . 1 . . . Weapon Failures 1 | . . . . . 1 . . . . . Overload Shots . | . . . . . . . . . . . Overflow Damage 127 | . . . . . 127 . . . . . Projectiles . | . . . . . . . . . . . Explosions 127 | . . . . . 127 . . . . . Melee . | . . . . . . . . . . . Knockbacks . | . . . . . . . . . . . Impact . | . . . . . . . . . . . Kinetic . | . . . . . . . . . . . Secondary . | . . . . . . . . . . . Self-Inflicted Damage 439 | . . 2 . 45 372 . . . 13 7 Shots 7 | . . . . 2 4 . . . 1 . Rammed 11 | . . 1 . 2 1 . . . . 7 Targets Rammed 11 | . . 1 . 2 1 . . . . 7 Kicked . | . . . . . . . . . . . Crushed . | . . . . . . . . . . . Highest Temperature 787 | . 13 529 306 . 787 589 524 580 376 4 Average Temperature 192 | . 7 157 159 . 199 245 175 326 203 4 Received Heat Transfer 1957 | . 84 153 370 153 306 36 360 . 117 378 Effects 64 | . . 9 . . 20 9 9 16 1 . Shutdowns 17 | . . 2 . . 6 2 4 3 . . Energy Bleed 7 | . . 1 . . 2 1 . 3 . . Interference 11 | . . 2 . . 1 3 3 2 . . Matter Decay 8 | . . 3 . . 2 . 1 2 . . Short Circuit 8 | . . . . . 3 2 . 2 1 . Damage (minor) 2 | . . 1 . . . . 1 . . . Damage (major) 9 | . . . . . 5 . . 4 . . Damage (core) 2 | . . . . . 1 1 . . . . Siege Activations . | . . . . . . . . . . . Martial Activations . | . . . . . . . . . . . Shielding Activations . | . . . . . . . . . . . Robots Disrupted . | . . . . . . . . . . . Combat Hostiles . | . . . . . . . . . . . Robots Corrupted . | . . . . . . . . . . . Combat Hostiles . | . . . . . . . . . . . Parts Fried . | . . . . . . . . . . . Impact Corruptions . | . . . . . . . . . . . Robots Melted 2 | . . 1 . . . . 1 . . . Combat Hostiles 2 | . . 1 . . . . 1 . . . Parts Melted 1 | . . . 1 . . . . . . . Heat Transferred 4186 | . . 800 800 . 982 248 984 222 150 . Parts Sabotaged . | . . . . . . . . . . . Parts Stolen . | . . . . . . . . . . . Parts Stripped . | . . . . . . . . . . . Power Chain Reactions . | . . . . . . . . . . . Alert | -11 -10 -10 -10 -8 -7 -6 -6 -6 -5 -5 ------- Run | Yrd Mat Min Sub Mat Fac Fac Low Low Fac Ext Maximum Alert Level . | . . . . . . . . . . . Low Security (%) 100 | 100 100 100 . 100 100 100 . . 100 100 Level 1 . | . . . . . . . . . . . Level 2 . | . . . . . . . . . . . Level 3 . | . . . . . . . . . . . Level 4 . | . . . . . . . . . . . Level 5 . | . . . . . . . . . . . High Security . | . . . . . . . . . . . Max Security . | . . . . . . . . . . . Peak Influence 109 | 10 60 87 . 69 109 30 . . 91 53 Initial 34 | . 3 . . . 16 . . . 9 34 Average 14 | 1 9 27 . 8 12 3 . . 30 19 Influence Increases 1445 | 25 170 315 20 196 259 60 85 85 151 79 Destroy 0b10 Robot/C 660 | . 100 160 20 80 120 20 60 60 20 20 Destroy 0b10 Robot/NC 75 | 25 30 5 . 5 5 . . . . 5 Destroy Leader 138 | . 26 40 . 10 30 10 10 10 . 2 Allied During Kill 1 | . . . . . . . . . . 1 Successful Hack 58 | . 14 5 . . 22 . . . . 17 Disable Machine 195 | . . 105 . 15 60 . . . 15 . Destroy Structure 108 | . . . . 26 22 . . . 56 4 Lose Combat Pursuer 210 | . . . . 60 . 30 15 15 60 30 Influence Decreases 1445 | 20 175 315 20 159 296 60 85 70 95 150 Entered New Map 66 | . 2 . . . 21 . . . 6 37 Time Decay 1034 | 20 173 285 20 109 185 60 60 30 39 53 Lost Part 325 | . . 30 . 50 90 . 25 40 50 40 Lost Ally 20 | . . . . . . . . . . 20 Squads Dispatched 10 | . 1 . . 1 3 . . . 3 2 Investigation 4 | . 1 . . . 1 . . . . 2 Extermination 2 | . . . . . 2 . . . . . Reinforcement 4 | . . . . 1 . . . . 3 . Assault . | . . . . . . . . . . . Garrison . | . . . . . . . . . . . Intercept . | . . . . . . . . . . . Searches Triggered . | . . . . . . . . . . . Construction Impeded . | . . . . . . . . . . . Haulers Reinforced 1 | . . . . . . . . . 1 . Active Scanning Responses . | . . . . . . . . . . . Cargo Convoy Interrupts . | . . . . . . . . . . . Stealth | -11 -10 -10 -10 -8 -7 -6 -6 -6 -5 -5 --------- Run | Yrd Mat Min Sub Mat Fac Fac Low Low Fac Ext Distress Signals 4 | . 1 . . 1 . . . . 1 1 Communications Jammed 5 | . . . . . . 5 . . . . Distress Signals 2 | . . . . . . 2 . . . . Times Spotted 90 | . 16 10 2 15 10 3 9 8 9 8 Peak Tracking Total 8 | . 4 3 1 8 4 2 5 4 4 4 Tactical Retreats 10 | . . 1 . 2 . 2 1 1 2 1 Traps | -11 -10 -10 -10 -8 -7 -6 -6 -6 -5 -5 ------- Run | Yrd Mat Min Sub Mat Fac Fac Low Low Fac Ext Traps Triggered 7 | . 2 . . 1 3 . . . . 1 Indirectly . | . . . . . . . . . . . Trap Hack Attempts . | . . . . . . . . . . . Triggered . | . . . . . . . . . . . Disarmed . | . . . . . . . . . . . Reprogrammed . | . . . . . . . . . . . Reused . | . . . . . . . . . . . Traps Extracted . | . . . . . . . . . . . Installed . | . . . . . . . . . . . Triggered . | . . . . . . . . . . . Machines | -11 -10 -10 -10 -8 -7 -6 -6 -6 -5 -5 ---------- Run | Yrd Mat Min Sub Mat Fac Fac Low Low Fac Ext Machines Disabled 13 | . . 7 . 1 4 . . . 1 . Max in Single Turn 4 | . . 1 . 1 4 . . . 1 . Garrison Access 2 | . . . . 1 1 . . . . . Machines Repaired . | . . . . . . . . . . . Machines Dismantled . | . . . . . . . . . . . Machines Sabotaged . | . . . . . . . . . . . Overloaded Fab Kills . | . . . . . . . . . . . Hacking | -11 -10 -10 -10 -8 -7 -6 -6 -6 -5 -5 --------- Run | Yrd Mat Min Sub Mat Fac Fac Low Low Fac Ext Machines Accessed 17 | . 5 1 . 2 4 . . . 2 3 Terminals 13 | . 5 1 . 1 2 . . . 1 3 Fabricators 1 | . . . . . 1 . . . . . Repair Stations . | . . . . . . . . . . . Recycling Units . | . . . . . . . . . . . Scanalyzers 1 | . . . . . . . . . 1 . Garrison Access 2 | . . . . 1 1 . . . . . Total Hacks 26 | . 6 3 . 2 6 . . . 3 6 Successful 12 | . 4 1 . 1 3 . . . 1 2 Failed 14 | . 2 2 . 1 3 . . . 2 4 Catastrophic 1 | . . . . . . . . . . 1 Database Lockouts . | . . . . . . . . . . . Manual . | . . . . . . . . . . . Terminals 22 | . 6 3 . 1 4 . . . 2 6 Fabricators 1 | . . . . . 1 . . . . . Repair Stations . | . . . . . . . . . . . Recycling Units . | . . . . . . . . . . . Scanalyzers 1 | . . . . . . . . . 1 . Garrison Access 2 | . . . . 1 1 . . . . . Terminal Hacks 10 | . 4 1 . . 2 . . . 1 2 Record 2 | . . . . . 1 . . . . 1 Robot Analysis 1 | . 1 . . . . . . . . . Open Door 2 | . . . . . . . . . 1 1 Locate Traps 2 | . 1 . . . 1 . . . . . Hauler Manifests 1 | . 1 . . . . . . . . . Zone Layout 2 | . 1 1 . . . . . . . . Fabricator Hacks . | . . . . . . . . . . . Repair Station Hacks . | . . . . . . . . . . . Recycling Unit Hacks . | . . . . . . . . . . . Scanalyzer . | . . . . . . . . . . . Garrison Access Hacks 2 | . . . . 1 1 . . . . . Seal Access 2 | . . . . 1 1 . . . . . Unauthorized Hacks . | . . . . . . . . . . . Terminals . | . . . . . . . . . . . Fabricators . | . . . . . . . . . . . Repair Stations . | . . . . . . . . . . . Recycling Units . | . . . . . . . . . . . Scanalyzers . | . . . . . . . . . . . Garrison Access . | . . . . . . . . . . . Data Cores Recovered . | . . . . . . . . . . . Used . | . . . . . . . . . . . Hacking Detections 9 | . 1 1 . . 3 . . . 2 2 Full Trace Events 2 | . . . . . . . . . . 2 Feedback Events . | . . . . . . . . . . . Feedback Blocked . | . . . . . . . . . . . Robot Schematics Acquired . | . . . . . . . . . . . Robots Built . | . . . . . . . . . . . Authchips . | . . . . . . . . . . . Time . | . . . . . . . . . . . Total Robot Build Rating . | . . . . . . . . . . . Part Schematics Acquired . | . . . . . . . . . . . Parts Built . | . . . . . . . . . . . Authchips . | . . . . . . . . . . . Time . | . . . . . . . . . . . Total Part Build Rating . | . . . . . . . . . . . Part Studies Acquired . | . . . . . . . . . . . Parts Repaired . | . . . . . . . . . . . Time . | . . . . . . . . . . . Parts Recycled . | . . . . . . . . . . . Recycled Matter . | . . . . . . . . . . . Retrieved Matter . | . . . . . . . . . . . Retrieved Components . | . . . . . . . . . . . Parts Scanalyzed . | . . . . . . . . . . . Part Schematics Acquired . | . . . . . . . . . . . Parts Damaged . | . . . . . . . . . . . Bothacking | -11 -10 -10 -10 -8 -7 -6 -6 -6 -5 -5 ------------ Run | Yrd Mat Min Sub Mat Fac Fac Low Low Fac Ext Used RIF Installer . | . . . . . . . . . . . Robots Hacked . | . . . . . . . . . . . Non-combat . | . . . . . . . . . . . Combat . | . . . . . . . . . . . Robot Hacks Applied . | . . . . . . . . . . . Relay Couplers Released . | . . . . . . . . . . . Fabnet Peak Effective % . | . . . . . . . . . . . Robots Rewired . | . . . . . . . . . . . Allies Hacked . | . . . . . . . . . . . Hacks Repelled . | . . . . . . . . . . . Allies | -11 -10 -10 -10 -8 -7 -6 -6 -6 -5 -5 -------- Run | Yrd Mat Min Sub Mat Fac Fac Low Low Fac Ext Total Allies 14 | . . . . . . 12 . 1 . 1 Largest Group 8 | . . . . . . 8 . 1 . 1 Highest-Rated Group 180 | . . . . . . 180 . 127 . 39 Highest-Rated Ally 127 | . . . . . . 31 . 127 . 39 Total Orders . | . . . . . . . . . . . Ally Attacks 7 | . . . . . . . . . . 7 Total Damage 120 | . . . . . . . . . . 120 Kills 2 | . . . . . . . . . . 2 Allies Corrupted . | . . . . . . . . . . . Allies Melted . | . . . . . . . . . . . Intel | -11 -10 -10 -10 -8 -7 -6 -6 -6 -5 -5 ------- Run | Yrd Mat Min Sub Mat Fac Fac Low Low Fac Ext Active Infowar (turns) 8221 | 60 789 843 417 651 1367 393 3535 166 . . Optics 1552 | . . . . 593 938 21 . . . . IFF 167 | . . . . . . 167 . . . . Terrain 2275 | 60 728 95 . 602 624 . . 166 . . Seismic 1393 | . . 748 417 228 . . . . . . Decoding 2327 | . . . . . . . 2327 . . . T.N.C. 61 | . 61 . . . . . . . . . Cloaking 2286 | . . . . . . . 2286 . . . Jamming 2044 | . . . . . 443 393 1208 . . . ECM 39 | . . . . . 39 . . . . . Robot Analysis Total 1 | . 1 . . . . . . . . . Derelict Logs Recovered 2 | . . 1 1 . . . . . . . Drone Launches . | . . . . . . . . . . . Drone Recoveries . | . . . . . . . . . . . Exploration | -11 -10 -10 -10 -8 -7 -6 -6 -6 -5 -5 ------------- Run | Yrd Mat Min Sub Mat Fac Fac Low Low Fac Ext Turns Passed 9357 | 106 789 921 417 787 1396 522 3742 370 154 153 Spaces Moved 3983 | 46 632 695 413 365 741 182 564 79 117 149 Core 719 | 24 . . . 31 45 . 300 79 117 123 Treads 7 | . . . . . . . . . . 7 Legs 333 | . . . . . 314 . . . . 19 Wheels 2176 | 22 632 695 413 334 80 . . . . . Hover 748 | . . . . . 302 182 264 . . . Flight . | . . . . . . . . . . . Fastest Speed 32 | 50 80 80 80 90 32 112 100 50 50 50 Average Speed 190 | 132 80 92 80 112 145 199 649 384 112 78 Slowest Speed 900 | 250 95 95 80 350 450 440 900 900 550 300 Overloaded Moves . | . . . . . . . . . . . Propulsion Burnouts . | . . . . . . . . . . . Robots Hopped . | . . . . . . . . . . . Potential Cave-ins . | . . . . . . . . . . . Cave-ins Triggered . | . . . . . . . . . . . Exploration Rate (%) 33 | 3 83 99 26 29 19 4 67 7 5 23 Regions Visited 10 Branch Regions 5 Pre-discovered Areas 1 | . . 1 . . . . . . . . Known Exits Taken 1 | . . . . 1 . . . . . . Unknown Exits Taken 9 | 1 1 1 1 . 1 1 1 1 1 . Scrap Searched 11 | . . 2 2 . . . 3 4 . . Spaces Dug . | . . . . . . . . . . . Terrain Destroyed 114 | . . . . 55 30 . . 5 24 . Melee . | . . . . . . . . . . . Projectile 5 | . . . . . . . . 5 . . AOE 109 | . . . . 55 30 . . . 24 . Terrain Rammed . | . . . . . . . . . . . Walls Destroyed . | . . . . . . . . . . . Machines Disabled . | . . . . . . . . . . . Actions | -11 -10 -10 -10 -8 -7 -6 -6 -6 -5 -5 --------- Run | Yrd Mat Min Sub Mat Fac Fac Low Low Fac Ext Total 5362 | 74 845 875 472 714 1011 332 610 119 128 182 Wait 988 | . 162 117 46 303 194 137 13 16 . . Move 3973 | 45 631 694 412 364 740 181 563 78 116 149 Hop . | . . . . . . . . . . . Pick Up 56 | 12 4 6 . 9 13 1 4 . 3 4 Fast Attach 26 | . 4 2 . 1 7 4 2 6 . . Attach 48 | 7 . 3 . 10 13 1 2 4 4 4 Detach 3 | . . . . 2 1 . . . . . Swap 25 | 1 5 3 1 3 9 1 2 . . . Drop 18 | . 3 3 1 1 5 2 3 . . . Fire 194 | 9 36 46 12 19 28 5 19 15 5 . Melee . | . . . . . . . . . . . Ram 10 | . . 1 . 2 1 . . . . 6 Kick . | . . . . . . . . . . . Crush 1 | . . . . . . . . . . 1 Escape Stasis 15 | . . . . . . . . . . 15 Rewire 5 | . . . . . . . 2 . . 3 Trap . | . . . . . . . . . . . Miscellaneous . | . . . . . . . . . . . Route ------- -11/Scrapyard -10/Materials (discovered 4 exits: [*Mat x2] / *Min / [*Sub]) -10/Mines (discovered 3 exits: [*Mat x2] / [*Sub]) -10/Subcaves -8/Materials (discovered 2 exits: *Fac x2) -7/Factory -6/Factory -6/Lower Caves -6/Lower Caves (discovered 2 exits: *Fac x2) -5/Factory -5/Extension History --------- Turn | Location | Event 10 | -11/Scrapyard | Discovered new exit (range 15) 107 | -11/Scrapyard | Entered Materials 108 | -10/Materials | Met a group of wandering Federalists 222 | -10/Materials | Discovered new exit (range 12) 245 | -10/Materials | Discovered new exit (range 8) 317 | -10/Materials | Build established: Mutant 533 | -10/Materials | Discovered new exit (range 4) 740 | -10/Materials | Discovered new exit (range 12) 896 | -10/Materials | Entered Mines 897 | -10/Mines | Assembled infested the area 921 | -10/Mines | Discovered new exit (range 15) 947 | -10/Mines | Learned location of Storage (-9) 1093 | -10/Mines | Discovered new exit (range 6) 1304 | -10/Mines | Received a Rocket Launcher from a helpful Derelict 1345 | -10/Mines | A weapon hastily lodged in a ceiling crevice suddenly fell to the ground 1590 | -10/Mines | Joined a pair of Derelicts in attacking an 0b10 outpost 1793 | -10/Mines | Discovered new exit (range 15) 1817 | -10/Mines | Entered Subcaves 1902 | -10/Subcaves | Shifting Twisted Machinery released Flamer 1903 | -10/Subcaves | Shifting Twisted Machinery released Riot Gun 2024 | -10/Subcaves | Discovered new exit (range 4) 2061 | -10/Subcaves | Learned 2 Materials zone layouts 2134 | -10/Subcaves | Core integrity fell below 50% 2150 | -10/Subcaves | Core integrity fell below 20% 2180 | -10/Subcaves | Lost 3 parts (1p1n1w) 2234 | -10/Subcaves | Entered Materials 2234 | -8/Materials | Evolved 4 slots: Propulsion x1, Utility x3 2235 | -8/Materials | Identified exit to Factory 2532 | -8/Materials | Build established: Scavenger-Mutant 3016 | -8/Materials | Discovered exit to Factory (range 5) 3021 | -8/Materials | Entered Factory 3021 | -7/Factory | Evolved 2 slots: Power x1, Weapon x1 3546 | -7/Factory | Lost 7 parts (2n2u3w) 4234 | -7/Factory | Build established: Skirmisher 4380 | -7/Factory | Discovered new exit (range 12) 4417 | -7/Factory | Entered another Factory area 4417 | -6/Factory | Evolved 2 slots: Power x1, Weapon x1 4645 | -6/Factory | Lost 4 parts (2p1n1u) 4714 | -6/Factory | Discovered new exit (range 2) 4730 | -6/Factory | Found Hvy. Reflective Plating 4939 | -6/Factory | Entered Lower Caves 5057 | -6/Lower Caves | Entered a destroyed Warlord outpost 5299 | -6/Lower Caves | Build established: Mutant 6178 | -6/Lower Caves | Lost 3 parts (1n2u) 6382 | -6/Lower Caves | Build established: Tank 8236 | -6/Lower Caves | Discovered new exit (range 14) 8636 | -6/Lower Caves | Attracted the attention of an 0b10 outpost 8666 | -6/Lower Caves | Core integrity fell below 50% 8681 | -6/Lower Caves | Entered another Lower Caves area 8681 | -6/Lower Caves | Discovered new exit (range 13) 8711 | -6/Lower Caves | Lost 9 parts (1p4u4w) 8988 | -6/Lower Caves | Lost 5 parts (1p3u1w) 9038 | -6/Lower Caves | CL-ANK showed up to help 9040 | -6/Lower Caves | CL-ANK revealed a hidden path 9046 | -6/Lower Caves | Core integrity fell below 20% 9051 | -6/Lower Caves | Entered Factory 9051 | -5/Factory | Evolved 2 slots: Utility x2 9069 | -5/Factory | Lost 4 parts (1p1u2w) 9201 | -5/Factory | Discovered new exit (range 10) 9205 | -5/Factory | Entered Extension 9207 | -5/Extension | Lost 5 parts (1p1u3w) 9249 | -5/Extension | Rescued a captive Derelict 9307 | -5/Extension | Core integrity fell below 50% 9350 | -5/Extension | Core integrity fell below 20% 9358 | -5/Extension | Destroyed by Y-64 Sentinel with Wave Gun Last Messages --------------- 09332_ Identified Imp. Treads. 09333_ Attempting to rewire 0N-4XC(h). 09334_ Flexi-carbon Leg destroyed. 09334_ Attempting to rewire 0N-4XC(h). 09336_ Slug penetrates Wall. 09341_ Penetrated by Slug. 09344_ Slug penetrates Wall. 09346_ Slammed into Y-64 Sentinel. 09347_ Penetrated by Slug. 09347_ Imp. Treads destroyed. 09347_ G-50 Soldier destroyed. 09348_ Slammed into Y-64 Sentinel. 09349_ Destabilizing: Core damaged (-20). 09350_ Slammed into Y-64 Sentinel. 09351_ Destabilizing: Core damaged (-10). 09352_ Slammed into Y-64 Sentinel. 09352_ Penetrated by Slug. 09355_ Slug penetrates Wall. 09355_ Penetrated by Slug. [Achievement: This Is Interesting...] Map ----- +----------------------------------------------------+ | | | | | | | | | | | | | | | | | | | | | | | | | | | | | | | | | | | | | | | | | ?????????????????????????????????????????????????? | | ?????????????????????????????????????????????????? | | ???######################????????????????????????? | | ???# #????????????????????????? | | ???# ###### #???????????????? | | #### @ ????????? | | ###### #???????????????? | | #################Y ##???????????????????????? | | ????????????????# "#???????????????????????? | | #######?????????# ##???????????????????????? | | #?????????# #????????????????????????? | | =########### #????????????????????????? | | [[[%"! %% #????????????????????????? | | *####"######/###"#####??????????????????????? | | #??#### #??????????????????????? | | [ #?????# #??????????????????????? | | #######?????# = #??????????????????????? | | ????????????# #??????????????????????? | | ????????????# #??????????????????????? | | ????????????# = #??????????????????????? | | ????????????###############??????????????????????? | | ?????????????????????????????????????????????????? | | ?????????????????????????????????????????????????? | | ?????????????????????????????????????????????????? | | ?????????????????????????????????????????????????? | | ?????????????????????????????????????????????????? | | ?????????????????????????????????????????????????? | | ?????????????????????????????????????????????????? | | ?????????????????????????????????????????????????? | | ?????????????????????????????????????????????????? | +----------------------------------------------------+ Best States ------------- Heat Dissipation 48 Energy Generation 29 Energy Capacity 440 Matter Stores 300 Matter Capacity 300 Sight Range 18 Terrain Scan Range 16 Terrain Scan Density 10 ECM Strength 2 Jamming Range 12 Cloak Strength 2 Armor Coverage 600 Resistance: TH 25 Evasion (%) 57 Targeting Accuracy 8 Recoil Reduction 4 Kinecelleration 40 Salvage Targeting 1 Offensive Hacking 10 Item Schematics ----------------- None Robot Schematics ------------------ None Fabricated ------------ Nothing Repaired ---------- Nothing Studied --------- None Alien Tech Used ----------------- None Achievements -------------- No Signal This Is Interesting... Challenges ------------ None Game ------ Seed SkeletonTitaniumHumpback Manual? 0 Play Time 00:42:10 Cumulative 29.2 hours Start 2026.09.03 @ 22:49:17 End 2026.09.03 @ 23:29:27 Sessions 1 Manual Loads 0 Difficulty Rogue Special Mode None Game No. 70 Rogue 53 Adventurer 15 Explorer 2 Win Type - Total 0 Types 0/0/0/0/0/0/0/0/0/0 Lore% 25 Gallery% 24 Achievement% 21 Wizard Run 0 Options --------- Layout 1 ASCII 0 Keyboard 0 Movement Mouse Keybinds 0 Fullscreen 1 Font 24/Smallcaps Map View 50x35 Zoom Use 0% Tactical HUD 1 Map Filters NONE Filters NONE Steam 1 RUN: 691f492a-8f5e-4f45-b094-8bab099ce6ac